{"text_format":"1","workbook":"xlsx","n_sheets":3,"sheets":["(CALCULATOR)","(DATA)","Questions"],"not_rendered":{"charts":0,"images":2,"macros":1,"external_links":0,"defined_names":5,"comments":1,"pivot_tables":0},"unopened":[],"bounds":{"document_bytes":16777216,"sheet_cells":100000,"rows_first":2000,"rows_last":500,"rows_between":2000,"halvings":0,"cell_chars":16384,"cell_head_chars":4096},"cells_cut":0,"cells_raw":0,"read":"whole","date_system":"1900"}

{"sheet":"(CALCULATOR)","index":0,"n_rows":29,"n_cols":2,"rows_kept":29,"cut":false,"hidden":false,"merged":[[28,0,28,1],[1,0,1,1],[19,0,19,1],[25,0,25,1],[26,0,26,1],[27,0,27,1]]}
["EXIM  \nZÖLD IRÁNYTŰ","A következő kérdőív többek között a zöld beruházási hitel céljára, összegére, futamidejére, az ügyfél szegmensére vonatkozóan tartalmaz kérdéseket, és azt vizsgálja, hogy az ügylet megfelelhet-e az Eximbank Zöld Finanszírozási Keretrendszerének."]
["Az eszközben (v1.00) feltüntetett feltételek kizárólag tájékoztató jellegûek, és az Eximbank Zrt. részérõl semmiféle kötelezettségvállalást nem jelentenek, illetve eredményeznek. Az Eximbank Zrt. a jelen alkalmazás tekintetében kizárja a Polgári Törvénykönyvrõl szóló 2013. évi V. törvény 6:587. §-ának alkalmazását. A tájékoztatás nem teljeskörû és nem minõsül ajánlatnak."]
["A beruházás zöld célja","Kérem válasszon!"]
["Energiahatékonysági beruházás (technológia, gép) esetén a javulás mértéke eléri a 30%-ot?","Kérem válasszon!"]
["Energiahatékonysági beruházás (technológia, gép) esetén a javulás mértéke eléri a 15%-ot?","Kérem válasszon!"]
["Ipari vagy kereskedelmi ingatlan korszerűsítése esetén az energiahatékonysági javulás mértéke eléri a 30%-ot?","Kérem válasszon!"]
["Ipari vagy kereskedelmi ingatlan korszerűsítése esetén az energiahatékonysági javulás mértéke eléri a 15%-ot?","Kérem válasszon!"]
["A beruházással megvalósított ingatlan építés, vásárlás, korszerűsítés bérbeadási céllal valósul meg?","Kérem válasszon!"]
["A beruházással érintett tevékenység veszélyes hulladék (pl. akkumulátor, elektronikai berendezés) feldolgozása vagy amennyiben hulladékszállítás, úgy nem kizárólag szelektív hulladék szállítása valósul meg?","Kérem válasszon!"]
["A beruházó főtevékenysége vagy a beruházással megvalósított tevékenység az alábbiak közül valamelyik? 6810, 6820, 6831, 6832","Kérem válasszon!"]
["DNSH igazolás rendelkezésre áll?","Kérem válasszon!"]
["Ügyfél szegmens besorolása","Kérem válasszon!"]
["Az alábbi 3 feltétel közül az ügyfél (nem csoportszinten) legalább kettőben eléri vagy meghaladja az alábbi értékeket?\nNettó árbevétel: 15 millió EUR / Mérlegfőösszeg 15 millió EUR / létszám: 300 fő","Kérem válasszon!"]
["Igényelt devizanem","Kérem válasszon!"]
["Használni kívánt HUF/EUR árfolyam",0]
["A hitel összege az igényelt devizanemben",0]
["A beruházás elszámolható költsége a hitel devizanemében",0]
["A hitel futamideje (hónap)",0]
["Pénzügyi intézményen keresztül igényelt?","Kérem válasszon!"]
["Az ügylet az Eximbank Zöld Finanszírozási Keretrendszerének nem felel meg"]
["Nemzetközi szabályozás - EU taxonómia","Nem"]
["Nemzeti szabályozás - MNB irányelvek","Nem"]
["CBI taxonómia","Nem"]
["EIB","Nem"]
["MIGA","Nem"]
["EIB nyilatkozat szükséges\nKizárt tevékenység további vizsgálata szükséges."]
["MIGA nyilatkozat szükséges"]
["MIGA megállapodás szerinti Teljesítmény Standard 1. és 2. feltétel teljesülése szükséges. \nForduljon az EXIM ESG szakértőjéhez."]
["MIGA megállapodás szerinti Teljesítmény Standard 1-8. feltételek teljesülése szükséges. \nForduljon az EXIM ESG szakértőjéhez."]

{"sheet":"(DATA)","index":1,"n_rows":4,"n_cols":3,"rows_kept":4,"cut":false,"hidden":true,"merged":[]}
["[cmb]_Igen_Nem",null,"DNSH igazolás rendelkezésre áll?"]
["Kérem válasszon! ",null,"Az alábbi 3 feltétel közül az ügyfél (nem csoportszinten) legalább kettőben eléri vagy meghaladja az alábbi értékeket?\nNettó árbevétel: 15 millió EUR / Mérlegfőösszeg 15 millió EUR / létszám: 300 fő"]
["Igen",null,"Használni kívánt HUF/EUR árfolyam"]
["Nem"]

{"sheet":"Questions","index":2,"n_rows":57,"n_cols":17,"rows_kept":57,"cut":false,"hidden":true,"merged":[]}
["Kérdés sorszáma","Kérem válasszon!","Input","Válasz sorszáma","Értékkészlet","QuestionLookUp","Következő kérdés",null,"EU taxanómia","MNB taxanómia","EIB","MIGA","CBI","EIB nyilatkozat","MIGA nyilatkozat","SKIP_TEÁOR","SKIP_DNSH"]
[1,"A beruházás zöld célja","Combo",null,"Kérem válasszon!",{"$f":"\"[\" & A2 & \"] \" & E2","v":"[1] Kérem válasszon!"}]
[1,null,null,1,"Megújuló energia (nem hidrogén, nem hőszivattyú) előállítása","[1] Megújuló energia (nem hidrogén, nem hőszivattyú) előállítása",{"$f":"QuestionIdByQuestionLookUp(H3)","v":8},"A beruházó főtevékenysége vagy a beruházással megvalósított tevékenység az alábbiak közül valamelyik? 6810, 6820, 6831, 6832",1,1,1,0,0,1,0]
[1,null,null,2,"Megújuló energia előállítása - hőszivattyú","[1] Megújuló energia előállítása - hőszivattyú",8,"A beruházó főtevékenysége vagy a beruházással megvalósított tevékenység az alábbiak közül valamelyik? 6810, 6820, 6831, 6832",0,0,1,0,0,1,0,null,"SKIP"]
[1,null,null,3,"Megújuló energia - hidrogén - előállítása","[1] Megújuló energia - hidrogén - előállítása",9,"DNSH igazolás rendelkezésre áll?",0,0,0,1,0,0,1,null,"SKIP"]
[1,null,null,4,"Kizárólag energia tárolás","[1] Kizárólag energia tárolás",8,"A beruházó főtevékenysége vagy a beruházással megvalósított tevékenység az alábbiak közül valamelyik? 6810, 6820, 6831, 6832",1,1,1,0,0,1,0]
[1,null,null,5,"Energiahatékonysági beruházás, gép technológia csere ","[1] Energiahatékonysági beruházás, gép technológia csere ",2,"Energiahatékonysági beruházás (technológia, gép) esetén a javulás mértéke eléri a 30%-ot?",0,1,0,1,0,0,1,"CONDITIONAL_SKIP","SKIP"]
[1,null,null,6,"Ipari vagy kereskedelmi ingatlan energiahatékonysági korszerűsítése","[1] Ipari vagy kereskedelmi ingatlan energiahatékonysági korszerűsítése",4,"Ipari vagy kereskedelmi ingatlan korszerűsítése esetén az energiahatékonysági javulás mértéke eléri a 30%-ot?",1,1,1,"[EIB_DEPENDENT]",0,1,"[2]","CONDITIONAL_SKIP"]
[1,null,null,7,"Ipari vagy kereskedelmi adás-vétele","[1] Ipari vagy kereskedelmi adás-vétele",6,"A beruházással megvalósított ingatlan építés, vásárlás, korszerűsítés bérbeadási céllal valósul meg?",1,1,0,1,0,0,1,"SKIP"]
[1,null,null,8,"Ipari vagy kereskedelmi építése","[1] Ipari vagy kereskedelmi építése",6,"A beruházással megvalósított ingatlan építés, vásárlás, korszerűsítés bérbeadási céllal valósul meg?",1,1,1,"[EIB_DEPENDENT]",0,1,"[2]"]
[1,null,null,9,"Lakóingatlan korszerűsítés, építés, adás-vétel","[1] Lakóingatlan korszerűsítés, építés, adás-vétel",9,"DNSH igazolás rendelkezésre áll?",1,1,0,1,0,0,1]
[1,null,null,10,"Elektromobilitás (zéró CO2 kibocsátású járművek)","[1] Elektromobilitás (zéró CO2 kibocsátású járművek)",8,"A beruházó főtevékenysége vagy a beruházással megvalósított tevékenység az alábbiak közül valamelyik? 6810, 6820, 6831, 6832",1,1,1,0,0,1,0]
[1,null,null,11,"Fenntartható agrár beruházás","[1] Fenntartható agrár beruházás",{"$f":"QuestionIdByQuestionLookUp(H13)","v":8},"A beruházó főtevékenysége vagy a beruházással megvalósított tevékenység az alábbiak közül valamelyik? 6810, 6820, 6831, 6832",0,1,"Egyedi vizsgálat szükséges","Egyedi vizsgálat szükséges",0,0,0,null,"SKIP"]
[1,null,null,12,"Fenntartható hulladékkezelés","[1] Fenntartható hulladékkezelés",{"$f":"QuestionIdByQuestionLookUp(H14)","v":7},"A beruházással érintett tevékenység veszélyes hulladék (pl. akkumulátor, elektronikai berendezés) feldolgozása vagy amennyiben hulladékszállítás, úgy nem kizárólag szelektív hulladék szállítása valósul meg?",0,0,1,"[3]",1,1,"[4]",null,"SKIP"]
[1,null,null,13,"Fenntartható vízgazdálkodás ","[1] Fenntartható vízgazdálkodás ",{"$f":"QuestionIdByQuestionLookUp(H15)","v":8},"A beruházó főtevékenysége vagy a beruházással megvalósított tevékenység az alábbiak közül valamelyik? 6810, 6820, 6831, 6832",0,0,1,0,1,1,0,null,"SKIP"]
[1,null,null,14,"Zöld technológiai beszállító által megvalósított beruházás (akinek árbevétele legalább 90%-a megújuló energia vagy energiahatékonysági javulást biztosító termékek (pl. szigetelőanyag) előállításához kapcsolódik)","[1] Zöld technológiai beszállító által megvalósított beruházás (akinek árbevétele legalább 90%-a megújuló energia vagy energiahatékonysági javulást biztosító termékek (pl. szigetelőanyag) előállításához kapcsolódik)",{"$f":"QuestionIdByQuestionLookUp(H16)","v":8},"A beruházó főtevékenysége vagy a beruházással megvalósított tevékenység az alábbiak közül valamelyik? 6810, 6820, 6831, 6832",0,0,1,"[EIB_DEPENDENT]",0,1,1,null,"SKIP"]
[2,"Energiahatékonysági beruházás (technológia, gép) esetén a javulás mértéke eléri a 30%-ot?","Combo",null,"Kérem válasszon!","[2] Kérem válasszon!"]
[2,null,null,1,"igen","[2] igen",{"$f":"QuestionIdByQuestionLookUp(H18)","v":8},"A beruházó főtevékenysége vagy a beruházással megvalósított tevékenység az alábbiak közül valamelyik? 6810, 6820, 6831, 6832",0,1,0,1,0,0,1]
[2,null,null,2,"nem","[2] nem",{"$f":"QuestionIdByQuestionLookUp(H19)","v":3},"Energiahatékonysági beruházás (technológia, gép) esetén a javulás mértéke eléri a 15%-ot?",0,0,0,1,0,0,1]
[3,"Energiahatékonysági beruházás (technológia, gép) esetén a javulás mértéke eléri a 15%-ot?","Combo",null,"Kérem válasszon!","[3] Kérem válasszon!"]
[3,null,null,1,"igen","[3] igen",{"$f":"QuestionIdByQuestionLookUp(H21)","v":8},"A beruházó főtevékenysége vagy a beruházással megvalósított tevékenység az alábbiak közül valamelyik? 6810, 6820, 6831, 6832",0,1,0,1,0,0,1,"CONDITIONAL_SKIP"]
[3,null,null,2,"nem","[3] nem",{"$f":"QuestionIdByQuestionLookUp(H22)","v":8},"A beruházó főtevékenysége vagy a beruházással megvalósított tevékenység az alábbiak közül valamelyik? 6810, 6820, 6831, 6832",0,0,0,0,0,0,1]
[4,"Ipari vagy kereskedelmi ingatlan korszerűsítése esetén az energiahatékonysági javulás mértéke eléri a 30%-ot?","Combo",null,"Kérem válasszon!","[4] Kérem válasszon!"]
[4,null,null,1,"igen","[4] igen",{"$f":"QuestionIdByQuestionLookUp(H24)","v":6},"A beruházással megvalósított ingatlan építés, vásárlás, korszerűsítés bérbeadási céllal valósul meg?",1,1,1,1,0,1,1]
[4,null,null,2,"nem","[4] nem",{"$f":"QuestionIdByQuestionLookUp(H25)","v":5},"Ipari vagy kereskedelmi ingatlan korszerűsítése esetén az energiahatékonysági javulás mértéke eléri a 15%-ot?",0,0,0,1,0,0,1]
[5,"Ipari vagy kereskedelmi ingatlan korszerűsítése esetén az energiahatékonysági javulás mértéke eléri a 15%-ot?","Combo",null,"Kérem válasszon!","[5] Kérem válasszon!"]
[5,null,null,1,"igen","[5] igen",{"$f":"QuestionIdByQuestionLookUp(H27)","v":6},"A beruházással megvalósított ingatlan építés, vásárlás, korszerűsítés bérbeadási céllal valósul meg?",1,1,1,1,0,1,1,"CONDITIONAL_SKIP"]
[5,null,null,2,"nem","[5] nem",{"$f":"QuestionIdByQuestionLookUp(H28)","v":6},"A beruházással megvalósított ingatlan építés, vásárlás, korszerűsítés bérbeadási céllal valósul meg?",0,0,0,0,0,0,1]
[6,"A beruházással megvalósított ingatlan építés, vásárlás, korszerűsítés bérbeadási céllal valósul meg?","Combo",null,"Kérem válasszon!","[6] Kérem válasszon!"]
[6,null,null,1,"igen","[6] igen",{"$f":"QuestionIdByQuestionLookUp(H30)","v":8},"A beruházó főtevékenysége vagy a beruházással megvalósított tevékenység az alábbiak közül valamelyik? 6810, 6820, 6831, 6832","*","*",0,"*","*","*","*"]
[6,null,null,2,"nem","[6] nem",{"$f":"QuestionIdByQuestionLookUp(H31)","v":8},"A beruházó főtevékenysége vagy a beruházással megvalósított tevékenység az alábbiak közül valamelyik? 6810, 6820, 6831, 6832","*","*",1,"*","*","*","*"]
[7,"A beruházással érintett tevékenység veszélyes hulladék (pl. akkumulátor, elektronikai berendezés) feldolgozása vagy amennyiben hulladékszállítás, úgy nem kizárólag szelektív hulladék szállítása valósul meg?","Combo",null,"Kérem válasszon!","[7] Kérem válasszon!"]
[7,null,null,1,"igen","[7] igen",{"$f":"QuestionIdByQuestionLookUp(H33)","v":8},"A beruházó főtevékenysége vagy a beruházással megvalósított tevékenység az alábbiak közül valamelyik? 6810, 6820, 6831, 6832",0,0,0,1,1,0,1]
[7,null,null,2,"nem","[7] nem",{"$f":"QuestionIdByQuestionLookUp(H34)","v":8},"A beruházó főtevékenysége vagy a beruházással megvalósított tevékenység az alábbiak közül valamelyik? 6810, 6820, 6831, 6832",0,0,1,0,1,1,0]
[8,"A beruházó főtevékenysége vagy a beruházással megvalósított tevékenység az alábbiak közül valamelyik? 6810, 6820, 6831, 6832","Combo",null,"Kérem válasszon!","[8] Kérem válasszon!"]
[8,null,null,1,"igen","[8] igen",{"$f":"QuestionIdByQuestionLookUp(H36)","v":9},"DNSH igazolás rendelkezésre áll?","*","*",0,"*","*","*","*"]
[8,null,null,2,"nem","[8] nem",{"$f":"QuestionIdByQuestionLookUp(H37)","v":9},"DNSH igazolás rendelkezésre áll?","*","*",1,"*","*","*","*"]
[9,"DNSH igazolás rendelkezésre áll?","Combo",null,"Kérem válasszon!","[9] Kérem válasszon!"]
[9,null,null,1,"igen","[9] igen",{"$f":"QuestionIdByQuestionLookUp(H39)","v":10},"Ügyfél szegmens besorolása",1,0,1,1,1,1,1]
[9,null,null,2,"nem","[9] nem",{"$f":"QuestionIdByQuestionLookUp(H40)","v":10},"Ügyfél szegmens besorolása",0,1,1,1,1,1,1]
[10,"Ügyfél szegmens besorolása","Combo",null,"Kérem válasszon!","[10] Kérem válasszon!"]
[10,null,null,1,"KKV","[10] KKV",{"$f":"QuestionIdByQuestionLookUp(H42)","v":11},"Az alábbi 3 feltétel közül az ügyfél (nem csoportszinten) legalább kettőben eléri vagy meghaladja az alábbi értékeket?\nNettó árbevétel: 15 millió EUR / Mérlegfőösszeg 15 millió EUR / létszám: 300 fő","*","*","CALC_EIB_KKV","*","*","*","*"]
[10,null,null,2,"Midcap Nagyvállalat","[10] Midcap Nagyvállalat",{"$f":"QuestionIdByQuestionLookUp(H43)","v":12},"Igényelt devizanem","*","*","CALC_EIB_MIDCAP","*","*","*","*"]
[10,null,null,3,"Nem Midcap Nagyvállalat","[10] Nem Midcap Nagyvállalat",{"$f":"QuestionIdByQuestionLookUp(H44)","v":12},"Igényelt devizanem","*","*","CALC_EIB_NEM_MIDCAP","*","*","*","*"]
[11,"Az alábbi 3 feltétel közül az ügyfél (nem csoportszinten) legalább kettőben eléri vagy meghaladja az alábbi értékeket?\nNettó árbevétel: 15 millió EUR / Mérlegfőösszeg 15 millió EUR / létszám: 300 fő","Combo",null,"Kérem válasszon!","[11] Kérem válasszon!"]
[11,null,null,null,"igen","[11] igen",{"$f":"QuestionIdByQuestionLookUp(H46)","v":12},"Igényelt devizanem","*","*","*","*","*","*","*"]
[11,null,null,null,"nem","[11] nem",{"$f":"QuestionIdByQuestionLookUp(H47)","v":12},"Igényelt devizanem","*","*","*","*","*","*","*"]
[12,"Igényelt devizanem","Combo",null,"Kérem válasszon!","[12] Kérem válasszon!"]
[12,null,null,1,"HUF","[12] HUF",{"$f":"QuestionIdByQuestionLookUp(H49)","v":13},"Használni kívánt HUF/EUR árfolyam","*","*","*","*","*","*","*"]
[12,null,null,2,"EUR","[12] EUR",14,"A hitel összege az igényelt devizanemben","*","*","*","*","*","*","*"]
[13,"Használni kívánt HUF/EUR árfolyam","Textbox",null,null,{"$f":"\"[\" & A51 & \"] \" & '(CALCULATOR)'!B15","v":"[13] 0"},14,"A hitel összege az igényelt devizanemben","*","*","*","*","*","*","*"]
[14,"A hitel összege az igényelt devizanemben","Textbox",null,null,{"$f":"\"[\" & A52 & \"] \" & '(CALCULATOR)'!B16","v":"[14] 0"},15,"A beruházás elszámolható költsége a hitel devizanemében","*","*","*","*","*","*","*"]
[15,"A beruházás elszámolható költsége a hitel devizanemében","Textbox",null,null,{"$f":"\"[\" & A53 & \"] \" & '(CALCULATOR)'!B17","v":"[15] 0"},16,"A hitel futamideje (hónap)","*","*","*","*","*","*","*"]
[16,"A hitel futamideje (hónap)","Textbox",null,null,{"$f":"\"[\" & A54 & \"] \" & '(CALCULATOR)'!B18","v":"[16] 0"},17,"Pénzügyi intézményen keresztül igényelt?","*","*","*","*","*","*","*"]
[17,"Pénzügyi intézményen keresztül igényelt?","Combo",null,"Kérem válasszon!","[17] Kérem válasszon!"]
[17,null,null,1,"igen","[17] igen",-1,null,"*","*","*","CALC_MIGA_FINANCIAL_INSTITUT","*","*","*"]
[17,null,null,2,"nem, Eximbanknál","[17] nem, Eximbanknál",-1,null,"*","*","*",1,"*","*","*"]